bitfinex-derivatives/quotes_ETHF0:USTF0_20240913
["timestamp","ask_amount","ask_price","bid_price","bid_amount"]
[1726223898103,0.79265,2362.5,2362.4,0.81257]
[1726223898306,3.14571029,2362.5,2362.4,0.81257]
[1726223899599,3.56896029,2362.5,2362.4,0.81257]
[1726223900001,3.56896029,2362.5,2362.4,0.42327]
[1726223900203,3.56898029,2362.5,2362.4,0.42327]
[1726223902612,0.79267,2362.5,2362.4,0.42327]
[1726223903705,2.21873481,2362.5,2362.4,0.42327]
[1726223903911,2.64198481,2362.6,2362.5,0.42325]
[1726223904107,2.64198481,2362.6,2362.5,1.95325]
[1726223904702,2.21873481,2362.6,2362.5,1.95325]
[1726223905711,2.64197481,2362.6,2362.5,1.95325]
[1726223906806,2.21873481,2362.6,2362.5,1.95325]
[1726223908821,2.21873481,2362.7,2362.6,0.42324]
[1726223909018,2.21873481,2362.7,2362.6,1.22094]
[1726223909317,2.61253481,2362.8,2362.7,0.42322]
[1726223909515,2.61253481,2362.8,2362.7,1.95322]
[1726223910615,3.03573481,2362.8,2362.7,1.95322]
[1726223911424,2.61253481,2362.8,2362.7,1.95322]
[1726223911630,2.62703481,2362.9,2362.8,0.4232]
[1726223911927,0.4083,2362.9,2362.8,0.4232]
[1726223912330,2.21873481,2363.0,2362.9,0.42318]
[1726223912529,1.66303949,2363.0,2362.9,6.18518]
[1726223912729,2.62563481,2363.1,2363.0,0.42316]
[1726223912922,3.04878481,2363.1,2363.0,5.03556]
[1726223913324,2.62563481,2363.1,2363.0,5.03556]
[1726223913929,2.62563481,2363.1,2363.0,0.80356]
[1726223914130,2.62563481,2363.1,2363.0,5.03556]
[1726223914931,2.62563481,2363.1,2363.0,0.80356]
[1726223915332,0.4069,2363.1,2363.0,0.80356]
[1726223916827,0.83005,2363.1,2363.0,0.42316]
[1726223917038,0.4069,2363.1,2363.0,0.42316]
[1726223917235,2.06859214,2363.1,2363.0,0.42316]
[1726223920532,0.4069,2363.1,2363.0,0.42316]
[1726223921038,2.49174214,2363.1,2363.0,0.42316]
[1726223921234,2.06859214,2363.1,2363.0,0.42316]
[1726223921426,0.42316,2363.0,2362.9,1.95317]
[1726223921628,0.42316,2363.0,2362.9,1.95318]
[1726223921931,2.49175214,2363.1,2363.0,0.42316]
[1726223922835,0.42316,2363.0,2362.9,1.95317]
[1726223923024,2.49175214,2363.1,2363.0,0.42316]
[1726223923430,0.42316,2363.0,2362.9,1.95317]
[1726223923734,0.83006,2363.1,2363.0,0.42316]
[1726223924234,0.42316,2363.0,2362.9,1.95317]
[1726223927637,0.83006,2363.1,2363.0,0.42316]
[1726223931143,0.42316,2363.0,2362.9,2.32967]
[1726223931334,0.83006,2363.1,2363.0,0.42316]
[1726223931839,0.42316,2363.0,2362.9,1.95317]
[1726223932240,0.42316,2363.0,2362.9,1.95318]
[1726223932744,3.63096,2363.0,2362.9,1.95318]
[1726223933339,0.42316,2363.0,2362.9,1.53]
[1726223933537,3.63096,2363.0,2362.9,1.53]
[1726223933838,5.29213655,2363.0,2362.9,1.53]
[1726223934242,3.63096,2363.0,2362.9,1.53]
[1726223934438,3.63096,2363.0,2362.9,1.95318]
[1726223935236,5.84468645,2363.0,2362.9,1.95318]
[1726223935639,3.63096,2363.0,2362.9,1.95318]
[1726223935843,5.84468645,2363.0,2362.9,1.95318]
[1726223936039,5.84468645,2363.0,2362.9,1.53]
[1726223936239,3.69480645,2363.0,2362.9,1.53]
[1726223936440,3.69480645,2363.0,2362.9,1.95318]
[1726223936645,3.69480645,2363.0,2362.9,1.53]
[1726223936947,1.48108,2363.0,2362.9,1.95318]
[1726223937248,3.69480645,2363.0,2362.9,1.95318]
[1726223938949,3.69480645,2363.0,2362.9,1.53]
[1726223940649,3.69480645,2363.0,2362.9,1.95318]
[1726223941346,2.63955092,2363.0,2362.9,1.95318]
[1726223941552,2.63955688,2363.0,2362.9,1.95318]
[1726223941742,2.63955641,2363.0,2362.9,1.95318]
[1726223941945,2.63951311,2363.0,2362.9,1.95318]
[1726223942252,0.42316,2363.0,2362.9,1.95318]
[1726223942548,2.63962462,2363.0,2362.9,1.95318]
[1726223942756,0.42316,2363.0,2362.9,1.95318]
[1726223943044,0.42321,2362.8,2362.7,1.9532]
[1726223943453,2.63982304,2362.8,2362.7,1.9532]
[1726223943951,3.04901304,2362.9,2362.8,0.4232]
[1726223944148,2.63981304,2362.9,2362.8,1.9532]
[1726223944342,3.04901304,2362.9,2362.8,1.9532]
[1726223944856,2.62581304,2362.9,2362.8,1.9532]
[1726223945753,2.21661304,2362.9,2362.8,1.9532]
[1726223946250,3.19032806,2363.0,2362.9,0.42318]
[1726223946652,3.19032806,2363.0,2362.9,0.82418]
[1726223948549,0.42318,2362.9,2362.8,1.95319]
[1726223948950,3.19033806,2362.9,2362.8,1.95319]
[1726223949849,3.19033806,2362.9,2362.8,1.53]
[1726223951358,0.42318,2362.9,2362.8,1.53]
[1726223952156,4.25522194,2362.9,2362.8,1.53]
[1726223953252,1.48114,2362.9,2362.8,1.53]
[1726223953457,4.25583023,2362.9,2362.8,1.53]
[1726223953654,1.48114,2362.9,2362.8,1.53]
[1726223954952,4.25625926,2362.9,2362.8,1.53]
[1726223955155,1.48114,2362.9,2362.8,1.53]
[1726223955557,6.7711,2362.9,2362.8,1.53]
[1726223955860,1.48124,2362.8,2362.7,1.53]
[1726223956159,5.47804,2362.8,2362.7,1.53]
[1726223956447,1.05807,2362.7,2362.4,4.62126]
[1726223956653,2.64343505,2362.5,2362.4,4.62126]
[1726223956854,2.22018505,2362.5,2362.4,7.28781075]
[1726223957047,2.22018505,2362.5,2362.4,6.15126]
[1726223957444,2.22018505,2362.5,2362.4,6.78230687]
[1726223957649,2.22018505,2362.5,2362.4,6.15126]
[1726223958053,2.77523131,2362.5,2362.4,5.728]
[1726223958258,0.79805,2362.5,2362.4,1.95327]
[1726223958556,3.57328131,2362.5,2362.4,1.95327]
[1726223958956,0.79805,2362.5,2362.4,1.95327]
[1726223959750,3.57328131,2362.5,2362.4,1.95327]
[1726223960256,0.79805,2362.5,2362.4,1.95327]
[1726223961252,3.01666103,2362.5,2362.4,1.95327]
[1726223961758,2.59341103,2362.5,2362.4,1.95327]
[1726223963354,3.01666103,2362.5,2362.4,1.95327]
[1726223963955,0.79805,2362.5,2362.4,1.95327]
[1726223964253,3.01625958,2362.5,2362.4,1.95327]
[1726223966762,2.59300958,2362.5,2362.4,1.95327]
[1726223967660,0.42328,2362.4,2362.3,0.42327]
[1726223967855,0.42328,2362.4,2362.3,1.53]
[1726223968058,2.64148958,2362.4,2362.3,1.95329]
[1726223968258,2.64148958,2362.4,2362.3,1.53]
[1726223969367,0.42328,2362.4,2362.3,1.53]
[1726223969562,0.42328,2362.4,2362.3,1.95329]
[1726223969864,2.64148958,2362.4,2362.3,1.53]
[1726223970062,0.42328,2362.4,2362.3,1.53]
[1726223971652,2.59300958,2362.5,2362.3,1.95328]
[1726223972058,1.66290993,2362.4,2362.3,1.95329]
[1726223972255,1.66290993,2362.4,2362.3,6.21932]
[1726223972457,1.66290993,2362.6,2362.5,0.42325]
[1726223972658,1.66290993,2362.7,2362.5,1.95325]
[1726223972858,2.64140958,2362.8,2362.6,1.17694]
[1726223973062,2.64140958,2362.8,2362.7,1.53]
[1726223973257,2.64140958,2362.8,2362.7,1.95322]
[1726223973464,2.64140958,2362.8,2362.7,1.53]
[1726223973663,2.64020162,2362.8,2362.7,1.53]
[1726223975568,0.4232,2362.8,2362.7,1.53]
[1726223976359,3.19843131,2362.8,2362.7,1.53]
[1726223976975,3.19843131,2362.8,2362.7,1.95322]
[1726223977271,3.19843131,2362.8,2362.7,1.53]
[1726223977458,2.77523131,2362.8,2362.7,1.95322]
[1726223977770,2.21749706,2362.8,2362.7,1.95321]
[1726223977973,2.64069706,2362.8,2362.7,1.95321]
[1726223978176,2.21749706,2362.8,2362.7,1.95322]
[1726223978670,2.64069706,2362.8,2362.7,0.42322]
[1726223978862,2.64069706,2362.8,2362.7,1.95322]
[1726223979164,2.21749706,2362.8,2362.7,1.95322]
[1726223979763,4.01709,2362.9,2362.8,0.4232]
[1726223979963,0.4232,2362.8,2362.7,1.95321]
[1726223980166,2.21767591,2362.8,2362.7,1.95321]
[1726223980872,2.64087591,2362.8,2362.7,1.95321]
[1726223982977,2.21767591,2362.8,2362.7,1.95321]
[1726223983167,2.60377591,2362.9,2362.8,0.4232]
[1726223983673,2.60400292,2362.9,2362.8,0.4232]
[1726223983873,2.64108292,2362.9,2362.8,0.8006]
[1726223985471,2.21790292,2362.9,2362.8,0.8006]
[1726223985974,2.64108292,2362.9,2362.8,0.8006]
[1726223986365,2.21790292,2362.9,2362.8,0.8006]
[1726223986567,2.64108292,2362.9,2362.8,0.8006]
[1726223987071,2.64108292,2362.9,2362.8,0.4232]
[1726223987873,0.42318,2362.9,2362.8,0.4232]
[1726223988665,6.40621131,2363.0,2362.8,0.4232]
[1726223988870,6.40621131,2363.0,2362.9,1.53]
[1726223990261,3.63098,2363.0,2362.9,1.53]
[1726223991768,3.63098,2363.0,2362.9,1.95318]
[1726223991972,3.63098,2363.0,2362.9,1.53]
[1726223992375,0.7879,2363.1,2362.9,1.95318]
[1726223992573,0.7879,2363.1,2363.0,0.42316]
[1726223992574,1.21105,2363.1,2363.0,0.42316]
[1726223992772,1.21105,2363.1,2363.0,1.53]
[1726223993369,1.21105,2363.1,2363.0,2.3175]
[1726223993570,0.7879,2363.1,2363.0,2.74066]
[1726224001784,3.00440371,2363.1,2363.0,2.74066]
[1726224002271,3.42755371,2363.1,2363.0,1.9402]
[1726224002480,0.42318,2362.9,2362.6,0.3703]
[1726224002780,3.00440371,2363.1,2362.6,0.3703]
[1726224002781,0.3952,2362.8,2362.7,0.42321]
[1726224002973,0.3952,2362.8,2362.7,1.95321]
[1726224003483,0.42322,2362.7,2362.3,3.90779833]
[1726224003687,0.42322,2362.7,2362.1,3.37276067]
[1726224003688,2.49114271,2362.7,2362.6,1.53]
[1726224004387,0.82893,2362.7,2362.6,1.53]
[1726224004978,2.06806323,2362.7,2362.6,1.95324]
[1726224005281,0.4057,2362.7,2362.6,5.16104]
[1726224005485,0.4057,2362.7,2362.6,1.95324]
[1726224005679,0.4057,2362.7,2362.6,5.16104]
[1726224005986,0.4057,2362.7,2362.6,1.95324]
[1726224006195,2.05756323,2362.8,2362.7,0.42322]
[1726224006694,2.05756323,2362.8,2362.7,0.79332]
[1726224007084,2.05756323,2362.8,2362.6,5.16103]
[1726224007385,1.66236323,2362.7,2362.6,1.95323]
[1726224007592,1.66236323,2362.7,2362.6,1.95324]
[1726224008290,2.08558323,2362.7,2362.5,0.3701]
[1726224008489,0.3852,2362.6,2362.5,0.42325]
[1726224008796,0.3852,2362.6,2362.5,1.95325]
[1726224010190,5.6761,2362.6,2362.3,3.2078]
[1726224010388,5.6761,2362.6,2362.4,1.53]
[1726224010389,2.46193323,2362.5,2362.4,1.53]
[1726224010690,1.20047,2362.5,2362.4,1.53]
[1726224010887,7.64977371,2362.5,2362.4,1.53]
[1726224011089,3.41697371,2362.5,2362.4,1.53]
[1726224012198,7.64977371,2362.5,2362.4,1.53]
[1726224012588,5.43327,2362.5,2362.4,1.53]
[1726224014092,1.20047,2362.5,2362.4,1.53]
[1726224014393,8.70833718,2362.5,2362.4,1.53]
[1726224014589,1.48146,2362.4,2362.3,1.53]
[1726224014787,0.42333,2362.1,2362.0,5.728]
[1726224014991,0.42335,2362.0,2361.8,0.3706]
[1726224015297,3.23862958,2362.0,2361.9,1.53]
[1726224015784,1.57575,2362.0,2361.9,1.53]
[1726224016188,6.86772,2362.0,2361.6,0.3706]
[1726224016401,0.42343,2361.5,2361.4,4.198]
[1726224016587,4.86986542,2361.6,2361.2,1.57613523]
[1726224016788,2.08553542,2361.3,2361.2,1.18323523]
[1726224016997,2.64064277,2361.3,2361.2,1.18323523]
[1726224017199,2.08364047,2361.3,2361.2,1.18323523]
[1726224017693,5.29144047,2361.3,2361.2,1.18323523]
[1726224018192,3.63127,2361.3,2361.2,1.18323523]
[1726224018593,0.42347,2361.3,2361.2,1.18323523]
[1726224020800,0.82146,2361.4,2361.2,4.49323523]
[1726224021289,0.42347,2361.3,2361.2,1.57893523]
[1726224021489,3.63127,2361.3,2361.2,1.18323523]
[1726224021996,3.63127,2361.3,2361.1,3.7335]
[1726224022395,0.42348,2361.3,2361.1,3.31]
[1726224024090,0.42348,2361.3,2361.1,3.7335]
[1726224024290,0.42348,2361.3,2361.1,3.31]
[1726224026199,0.42348,2361.3,2361.1,3.7335]
[1726224026393,0.42347,2361.3,2361.1,3.7335]
[1726224027097,3.63127,2361.3,2361.1,3.7335]
[1726224027299,3.63127,2361.3,2361.0,0.42351]
[1726224027599,3.63127,2361.3,2361.1,0.4235]
[1726224027800,0.82146,2361.4,2361.1,0.4235]
[1726224027999,0.398,2361.4,2361.2,0.81668]
[1726224028199,0.398,2361.4,2361.2,4.12668]
[1726224028395,0.42345,2361.5,2361.2,4.12668]
[1726224028889,0.42341,2361.7,2361.4,3.31]
[1726224029097,0.42341,2361.7,2361.5,0.79893]
[1726224029291,0.4096,2361.8,2361.6,6.5178]
[1726224029495,0.4096,2362.2,2361.7,3.31]
[1726224029698,3.2078,2362.3,2362.1,3.31]
[1726224029898,3.63109,2362.3,2362.2,0.3755]
[1726224031601,3.2078,2362.3,2362.2,0.3755]
[1726224032300,3.2078,2362.3,2362.2,1.16891]
[1726224032803,0.4096,2362.5,2362.3,0.42329]
[1726224033005,0.4096,2362.5,2362.2,0.7456]
[1726224033006,0.4096,2362.5,2362.2,1.1689]
[1726224033400,0.4096,2362.5,2362.3,0.42328]
[1726224033705,0.42326,2362.5,2362.2,1.1689]
[1726224035407,0.42326,2362.5,2362.2,0.7456]
[1726224035613,0.42326,2362.5,2362.2,1.1689]
[1726224035905,3.63105,2362.6,2362.2,1.1689]
[1726224037099,0.42325,2362.5,2362.2,1.1689]
[1726224037613,3.63104,2362.6,2362.3,0.42328]
[1726224037806,3.2078,2362.6,2362.4,0.42326]
[1726224038106,3.63104,2362.6,2362.4,0.42326]
[1726224038307,0.42324,2362.7,2362.4,0.42326]
[1726224038908,0.42324,2362.6,2362.4,0.42326]
[1726224039108,0.3793,2362.8,2362.3,3.31]
[1726224039109,0.80251,2362.8,2362.5,0.42325]
[1726224039309,0.3793,2362.8,2362.4,0.42326]
[1726224039604,0.42322,2362.7,2362.5,0.42325]
[1726224039805,0.42324,2362.6,2362.4,0.42326]
[1726224040198,0.3793,2362.8,2362.4,0.42326]
[1726224040199,0.42323,2362.7,2362.4,0.42326]
[1726224040807,0.3793,2362.8,2362.3,3.31]
[1726224040808,0.42324,2362.6,2362.3,3.31]
[1726224041005,0.42324,2362.6,2362.4,0.42327]
[1726224046309,0.42324,2362.6,2362.3,3.31]
[1726224046611,0.42324,2362.6,2362.4,0.42327]
[1726224047612,0.42324,2362.6,2362.3,6.94108]
[1726224048220,0.42324,2362.6,2362.4,0.42327]
[1726224048411,2.08341047,2362.6,2362.4,0.42327]
[1726224049512,1.66017047,2362.6,2362.3,6.5178]
[1726224049712,2.08340047,2362.7,2362.5,0.42325]
[1726224050306,0.42324,2362.6,2362.4,0.42326]
[1726224051217,1.66017047,2362.6,2362.5,0.42325]
[1726224052018,2.08341047,2362.6,2362.4,0.42326]
[1726224055410,0.42324,2362.6,2362.4,0.42326]
[1726224056114,0.42324,2362.6,2362.5,0.42325]
[1726224056311,0.42324,2362.6,2362.3,6.5178]
[1726224056516,0.42324,2362.6,2362.4,0.42327]
[1726224057320,0.42325,2362.6,2362.4,0.42327]
[1726224057811,0.82635,2362.6,2362.4,0.42327]
[1726224058419,0.42325,2362.5,2362.4,0.42327]
[1726224058615,4.669,2362.6,2362.3,1.94329]
[1726224058820,4.669,2362.6,2362.3,1.52]
[1726224058821,0.81647,2362.4,2362.3,1.52]
[1726224059010,0.81647,2362.4,2362.3,1.94329]
[1726224059011,0.3932,2362.4,2362.3,1.94329]
[1726224060720,0.42327,2362.5,2362.3,1.94329]
[1726224061613,0.42327,2362.5,2362.4,0.42327]
[1726224061813,0.42327,2362.5,2362.3,1.94328]
[1726224063522,0.42327,2362.5,2362.3,1.52]
[1726224063815,0.42326,2362.5,2362.3,1.94328]
[1726224064110,0.42326,2362.5,2362.4,0.42327]
[1726224064521,0.42326,2362.5,2362.3,1.94328]
[1726224065111,2.08343047,2362.5,2362.3,1.94328]
[1726224065311,2.08343047,2362.5,2362.4,0.42327]
[1726224066517,2.08342047,2362.5,2362.4,0.42327]
[1726224067213,0.42325,2362.5,2362.4,0.42327]
[1726224067908,2.62027277,2362.6,2362.4,0.42327]
[1726224068113,1.65767325,2362.5,2362.4,0.42327]
[1726224068320,2.62027277,2362.6,2362.4,0.42327]
[1726224068515,0.42325,2362.5,2362.4,0.42327]
[1726224069715,0.82635,2362.6,2362.4,0.42327]
[1726224070224,2.48412365,2362.6,2362.4,0.42327]
[1726224070816,0.42325,2362.5,2362.4,0.42327]
[1726224071217,0.42325,2362.5,2362.3,1.94328]
[1726224071416,0.3725,2362.4,2362.3,1.94328]
[1726224072323,5.23807365,2362.4,2362.2,0.7456]
[1726224072524,5.66135365,2362.4,2362.2,2.68889]
[1726224073327,1.65777365,2362.3,2362.2,1.16889]
[1726224073523,1.65777365,2362.3,2362.2,2.68889]
[1726224074136,3.01294277,2362.4,2362.2,2.68889]
[1726224075228,3.56639964,2362.4,2362.2,2.68889]
[1726224075530,2.22108675,2362.3,2362.2,2.68889]
[1726224075730,2.22108675,2362.3,2362.2,3.32035925]
[1726224075924,2.22108675,2362.3,2362.2,3.82622169]
[1726224076125,0.42329,2362.3,2362.2,1.88293169]
[1726224076521,3.56641964,2362.4,2362.2,1.88293169]
[1726224076723,3.19391964,2362.3,2362.2,0.3755]
[1726224077028,3.19391964,2362.3,2362.2,0.63150154]
[1726224077029,11.69354964,2362.3,2362.2,0.63150154]
[1726224077224,1.05828,2362.2,2361.9,1.619]
[1726224077426,0.42334,2362.0,2361.9,1.52]
[1726224077625,5.98471769,2362.0,2361.9,2.65778013]
[1726224077827,3.58135769,2362.1,2361.9,2.65778013]
[1726224078041,3.58135769,2362.1,2361.9,1.52]
[1726224078237,2.77612218,2362.0,2361.9,1.52]
[1726224078734,2.77612218,2362.0,2361.9,5.15116]
[1726224078933,2.22073999,2362.0,2361.9,6.69280471]
[1726224079123,2.22073999,2362.1,2362.0,0.42334]
[1726224079334,2.22073999,2362.1,2362.0,1.56098471]
[1726224079533,2.22073999,2362.1,2362.0,1.05498836]
[1726224079728,2.22073999,2362.1,2362.0,1.5610902]
[1726224079938,2.22073999,2362.1,2362.0,2.57498836]
[1726224081233,2.22073999,2362.1,2362.0,1.94334]
[1726224084142,0.80441,2362.2,2362.0,1.94334]
[1726224084546,0.80441,2362.2,2362.1,0.42333]
[1726224085537,0.80441,2362.2,2362.0,1.94333]
[1726224086131,0.42333,2362.1,2362.0,1.52]
[1726224086336,0.80442,2362.2,2362.0,1.94333]
[1726224086537,1.19942,2362.2,2362.0,1.94333]
[1726224086843,1.19942,2362.2,2362.0,0.42333]
[1726224087346,1.19942,2362.2,2361.9,0.42336]
[1726224087347,0.42334,2362.1,2361.9,0.42336]
[1726224088250,0.42334,2362.0,2361.9,0.42336]
[1726224088442,0.42334,2362.0,2361.8,2.33287]
[1726224088747,5.15914557,2362.2,2361.8,2.33287]
[1726224088748,3.5764812,2361.9,2361.8,2.33287]
[1726224092041,0.8025,2361.9,2361.8,2.33287]
[1726224092242,2.4662562,2361.9,2361.8,2.33287]
[1726224092747,2.8896162,2361.9,2361.7,0.42339]
[1726224093148,0.42338,2361.8,2361.7,0.42339]
[1726224093650,0.42338,2361.8,2361.6,2.7126]
[1726224093949,0.42338,2361.8,2361.7,0.4234]
[1726224094159,2.8896362,2361.9,2361.7,0.4234]
[1726224096154,1.6637562,2361.8,2361.7,0.4234]
[1726224096958,2.4846462,2361.8,2361.6,2.32071]
[1726224097156,1.66328494,2361.7,2361.6,1.8973]
[1726224097753,1.66328494,2361.7,2361.6,2.32072]
[1726224101241,1.66328494,2361.7,2361.6,1.8973]
[1726224101643,1.66328494,2361.7,2361.6,2.32072]
[1726224103559,1.66328494,2361.8,2361.7,0.4234]
[1726224103758,2.08666494,2361.8,2361.7,1.52]
[1726224103958,1.66328494,2361.8,2361.7,2.3306]
[1726224104145,2.08666494,2361.8,2361.7,1.9072]
[1726224104950,2.08666494,2361.8,2361.7,2.3306]
[1726224105155,2.08666494,2361.8,2361.7,1.9072]
[1726224105947,2.08666494,2361.8,2361.7,2.3306]
[1726224106648,2.08666494,2361.8,2361.7,1.9072]
[1726224107163,1.66328494,2361.8,2361.7,2.3306]
[1726224107362,1.66328494,2361.9,2361.8,0.42338]
[1726224107659,2.47361494,2362.1,2362.0,0.42334]
[1726224107956,2.47361494,2362.1,2361.9,1.94335]
[1726224108261,2.47361494,2362.1,2362.0,0.80434]
[1726224108262,2.05028494,2362.1,2362.0,0.80434]
[1726224108463,2.05028494,2362.1,2362.0,1.21164]
[1726224108955,2.47361494,2362.1,2362.0,1.21164]
[1726224109157,0.387,2362.1,2362.0,1.21164]
[1726224109347,2.04937223,2362.1,2362.0,1.21164]
[1726224110555,0.387,2362.1,2362.0,1.21164]
[1726224112362,2.2183416,2362.2,2362.1,0.42333]
[1726224112559,2.2183416,2362.2,2362.1,1.94333]
[1726224112862,2.6416516,2362.2,2362.1,1.94333]
[1726224114355,3.1972912,2362.2,2362.1,1.94333]
[1726224114761,0.42331,2362.2,2362.1,1.94333]
[1726224116968,1.2091,2362.3,2362.1,1.94333]
[1726224117869,4.53385557,2362.3,2362.1,1.94333]
[1726224119657,0.42331,2362.2,2362.1,1.52]
[1726224120260,4.53385557,2362.3,2362.1,1.94333]
[1726224120465,0.42331,2362.2,2362.1,1.52]
[1726224120671,4.53385557,2362.3,2362.1,1.94333]
[1726224120968,0.42331,2362.2,2362.1,1.52]
[1726224121261,0.42331,2362.2,2362.0,2.73163]
[1726224121665,0.42331,2362.2,2362.0,2.32433]
[1726224121868,3.74806557,2362.2,2362.1,0.42333]
[1726224122260,2.7743373,2362.2,2362.1,0.42333]
[1726224122571,2.7743373,2362.2,2362.1,1.94333]
[1726224122765,3.9834273,2362.3,2362.1,1.94333]
[1726224123266,2.7743373,2362.2,2362.1,1.94333]
[1726224124161,3.1976473,2362.2,2362.1,1.52]
[1726224125064,3.1976473,2362.2,2362.1,1.94333]
[1726224125375,3.1976473,2362.2,2362.1,1.52]
[1726224125662,3.1976473,2362.2,2362.0,0.80434]
[1726224125663,3.1976573,2362.2,2362.0,0.80434]
[1726224126870,2.7743373,2362.2,2362.1,0.42333]
[1726224127069,2.7743373,2362.2,2362.1,1.94333]
[1726224127470,3.1976473,2362.2,2362.1,1.52]
[1726224128168,3.1976473,2362.2,2362.1,1.94333]
[1726224128364,2.7743373,2362.2,2362.1,1.94333]
[1726224129070,3.1976473,2362.2,2362.1,1.52]
[1726224129266,3.1976473,2362.2,2362.1,1.94333]
[1726224132571,3.1976473,2362.2,2362.1,1.52]
[1726224133472,3.1976473,2362.2,2362.1,1.94333]
[1726224135270,3.1976473,2362.2,2362.1,1.52]
[1726224135667,3.1976473,2362.2,2362.1,1.94333]
[1726224135973,2.7743373,2362.2,2362.1,1.94333]
[1726224136272,3.9936,2362.3,2362.2,0.42331]
[1726224136675,3.9936,2362.3,2362.2,0.3751]
[1726224136979,4.41689,2362.3,2362.2,0.3751]
[1726224139278,3.32475557,2362.4,2362.3,0.42329]
[1726224139582,4.14181557,2362.5,2362.3,0.42329]
[1726224139776,0.81706,2362.5,2362.3,0.42329]
[1726224140178,0.42327,2362.4,2362.3,0.42329]
[1726224140478,4.14182557,2362.5,2362.3,0.42328]
[1726224140980,7.34962557,2362.5,2362.3,0.42328]
[1726224141771,4.14182557,2362.5,2362.4,0.42327]
[1726224141976,0.81707,2362.5,2362.4,0.42327]
[1726224142176,4.14182557,2362.5,2362.4,0.42327]
[1726224142378,0.3938,2362.5,2362.4,1.94327]
[1726224144369,2.61203521,2362.5,2362.4,1.94327]
[1726224145276,3.16249401,2362.6,2362.5,0.42325]
[1726224145475,2.60779587,2362.6,2362.5,0.81145]
[1726224145671,2.60779587,2362.6,2362.5,1.18915]
[1726224146080,2.21809587,2362.6,2362.5,1.18915]
[1726224150877,2.21809587,2362.6,2362.5,0.81145]
[1726224151278,0.42324,2362.6,2362.5,0.42325]
[1726224151792,0.42325,2362.6,2362.4,1.94326]
[1726224151991,2.21773244,2362.5,2362.4,1.94326]
[1726224152190,2.21773244,2362.5,2362.4,0.42326]
[1726224154586,5.42553244,2362.5,2362.4,0.42326]
[1726224154785,2.21773244,2362.5,2362.4,1.94326]
[1726224156688,2.21773244,2362.6,2362.5,0.42325]
[1726224157090,2.21773244,2362.6,2362.5,0.83305]
[1726224157890,2.58803244,2362.7,2362.6,0.42324]
[1726224158090,0.3703,2362.7,2362.6,3.00134]
[1726224158287,2.60233244,2362.8,2362.7,0.42322]
[1726224158495,2.60233244,2362.8,2362.7,0.81862]
[1726224159200,3.02553244,2362.8,2362.7,0.3954]
[1726224159500,0.3846,2362.8,2362.7,0.42322]
[1726224160797,0.3846,2362.8,2362.7,0.83252]
[1726224162394,3.15481888,2362.8,2362.7,0.83252]
[1726224162590,0.3846,2362.8,2362.7,0.83252]
[1726224163495,3.5778979,2362.8,2362.6,1.94323]
[1726224163688,3.1546979,2362.8,2362.6,1.94323]
[1726224164003,2.77001884,2362.7,2362.6,1.94322]
[1726224165401,0.3846,2362.8,2362.7,0.42322]
[1726224165592,0.3846,2362.8,2362.7,1.94322]
[1726224165792,3.15451062,2362.8,2362.7,1.94322]
[1726224165998,0.3846,2362.8,2362.7,1.94322]
[1726224166397,3.15434268,2362.8,2362.7,1.94322]
[1726224166706,0.3846,2362.8,2362.7,1.94322]
[1726224167008,0.3846,2362.8,2362.7,1.52]
[1726224167392,0.3846,2362.8,2362.7,1.94322]
[1726224168197,5.25429526,2362.8,2362.7,1.94322]
[1726224168405,5.25431365,2362.8,2362.7,1.94322]
[1726224168605,3.5924,2362.8,2362.7,1.94322]
[1726224170302,3.5924,2362.8,2362.7,1.52]
[1726224170607,6.23139414,2362.8,2362.7,1.52]
[1726224170907,5.80819414,2362.8,2362.7,1.94322]
[1726224171407,3.5924,2362.8,2362.7,1.94322]
[1726224174011,0.3846,2362.8,2362.7,1.94322]
[1726224174204,3.5924,2362.8,2362.7,1.94322]
[1726224174406,2.04673035,2362.8,2362.7,1.94322]
[1726224174609,0.3846,2362.8,2362.7,1.94322]
[1726224181503,3.0251368,2362.8,2362.7,1.52]
[1726224181709,3.0251368,2362.8,2362.7,1.94322]
[1726224182019,2.6019368,2362.8,2362.7,1.94322]
[1726224185416,3.0251368,2362.8,2362.7,1.94322]
[1726224185612,0.8078,2362.8,2362.7,1.52]
[1726224185815,0.8078,2362.8,2362.7,1.94322]
[1726224186013,0.8078,2362.8,2362.7,1.52]
[1726224186220,0.8078,2362.8,2362.7,1.94322]
[1726224187516,3.579471,2362.8,2362.7,1.94322]
[1726224188821,3.156271,2362.8,2362.7,1.94322]
[1726224189624,3.32475557,2362.8,2362.7,1.94322]
[1726224190919,3.74795557,2362.8,2362.7,1.94322]
[1726224191418,0.4232,2362.8,2362.7,1.94322]
[1726224191811,3.32998897,2362.8,2362.7,1.94322]
[1726224192012,4.6776815,2362.9,2362.7,1.94322]
[1726224192208,4.2544815,2362.9,2362.7,1.94322]
[1726224192525,3.33000364,2362.8,2362.7,1.94322]
[1726224193323,4.6776815,2362.9,2362.7,1.94322]
[1726224193508,3.3300649,2362.8,2362.7,1.94322]
[1726224193913,4.6776815,2362.9,2362.7,1.94322]
[1726224194723,3.33014486,2362.8,2362.7,1.94322]
[1726224196623,2.77511307,2362.8,2362.7,1.94322]
[1726224197118,3.19831307,2362.8,2362.7,1.94322]
[1726224198825,2.77511307,2362.8,2362.7,2.57407251]
[1726224199124,2.77511307,2362.8,2362.7,2.57407065]
[1726224199719,2.77511307,2362.8,2362.7,2.98007065]
[1726224200426,2.77511307,2362.8,2362.7,3.48545407]
[1726224201124,2.77511307,2362.8,2362.7,2.85460342]
[1726224201327,2.77511307,2362.8,2362.7,2.34922]
[1726224201918,2.77511307,2362.8,2362.7,0.42322]